bitfinex/quotes_BTCUSD_20240901
["timestamp","ask_amount","ask_price","bid_price","bid_amount"]
[1725229941578,0.3425,57513.0,57492.0,0.005]
[1725229941581,0.0925,57547.0,57489.0,0.01]
[1725229941582,0.173916,57499.0,57498.0,0.005]
[1725229941818,0.173916,57499.0,57489.0,0.002]
[1725229941819,0.362592,57499.0,57489.0,0.005]
[1725229942039,0.362592,57499.0,57478.0,0.002]
[1725229942040,0.01815929,57493.0,57479.0,0.1043]
[1725229942270,0.173988,57475.0,57474.0,0.005]
[1725229942524,0.772109,57492.0,57471.0,0.1093]
[1725229942525,0.17279191,57472.0,57471.0,0.1093]
[1725229942771,0.174,57471.0,57470.0,0.010398]
[1725229943013,0.522001,57471.0,57470.0,0.010398]
[1725229943265,0.73518833,57471.0,57470.0,0.005398]
[1725229943497,0.73518833,57471.0,57470.0,0.010398]
[1725229943498,0.56686035,57471.0,57470.0,0.010398]
[1725229943750,0.54930602,57471.0,57470.0,0.010398]
[1725229944017,0.54930602,57471.0,57470.0,0.022398]
[1725229944018,0.02730502,57471.0,57470.0,0.022398]
[1725229944248,0.17395,57488.0,57485.0,0.005]
[1725229944486,0.521911,57481.0,57480.0,0.005]
[1725229944752,0.521911,57481.0,57471.0,0.01]
[1725229944753,0.173997,57472.0,57471.0,0.01]
[1725229944984,0.11755433,57481.0,57475.0,0.015]
[1725229945237,0.01815929,57498.0,57488.0,0.004]
[1725229945238,0.347892,57489.0,57488.0,0.004]
[1725229945474,0.01815929,57498.0,57491.0,0.005]
[1725229945710,0.01815929,57498.0,57489.0,0.1038]
[1725229945711,0.01815929,57498.0,57497.0,0.319022]
[1725229945957,0.50540786,57507.0,57497.0,0.319022]
[1725229945958,0.173897,57505.0,57504.0,0.004]
[1725229946186,0.000819,57510.0,57503.0,0.002]
[1725229946187,0.00355433,57504.0,57503.0,0.002]
[1725229946430,0.00355433,57504.0,57497.0,0.1311]
[1725229946431,0.173919,57498.0,57497.0,0.1311]
[1725229946673,0.00355433,57504.0,57497.0,0.1311]
[1725229946674,0.17745633,57504.0,57497.0,0.1311]
[1725229946930,0.173911,57501.0,57497.0,0.1311]
[1725229947155,0.347808,57503.0,57497.0,0.1311]
[1725229947376,0.869595,57498.0,57497.0,0.1291]
[1725229947635,0.347854,57496.0,57489.0,0.2329]
[1725229947889,0.347854,57496.0,57492.0,0.002]
[1725229947890,0.173927,57496.0,57492.0,0.002]
[1725229948129,0.00358394,57498.0,57489.0,0.2349]
[1725229948352,0.347807,57504.0,57489.0,0.2349]
[1725229948353,0.173931,57494.0,57489.0,0.2349]
[1725229948569,0.173931,57494.0,57489.0,0.2329]
[1725229948798,0.347833,57499.0,57496.0,0.002]
[1725229949052,0.174,57471.0,57470.0,0.005398]
[1725229949299,0.1832,57497.0,57476.0,0.50540786]
[1725229949300,0.005,57497.0,57476.0,0.50540786]
[1725229949560,0.005,57497.0,57470.0,0.005398]
[1725229949561,0.50540786,57495.0,57470.0,0.005398]
[1725229949808,1.91039,57496.0,57470.0,0.005398]
[1725229949809,0.173989,57475.0,57470.0,0.005398]
[1725229950062,0.1,57494.0,57470.0,0.005398]
[1725229950285,0.1,57494.0,57472.0,0.002]
[1725229950286,0.347939,57482.0,57472.0,0.002]
[1725229950513,0.347905,57487.0,57473.0,0.477789]
[1725229950771,0.1,57494.0,57473.0,0.477789]
[1725229950772,0.173956,57486.0,57483.0,0.002]
[1725229951002,0.173956,57486.0,57474.0,0.05199816]
[1725229951003,0.173949,57488.0,57486.0,0.002]
[1725229951253,0.1,57494.0,57477.0,0.34796]
[1725229951254,0.347935,57482.0,57481.0,0.1298]
[1725229951469,1.217772,57482.0,57481.0,0.1298]
[1725229952185,1.217772,57482.0,57472.0,0.2324]
[1725229952186,0.173994,57473.0,57472.0,0.2324]
[1725229952639,0.521968,57475.0,57472.0,0.2324]
[1725229952857,0.02730046,57482.0,57481.0,0.002]
[1725229953113,0.02730046,57482.0,57472.0,0.24972504]
[1725229953114,0.02730046,57482.0,57479.0,0.173975]
[1725229953361,0.069812,57499.0,57488.0,0.002]
[1725229953587,0.069812,57499.0,57480.0,0.14138219]
[1725229953588,0.1739,57504.0,57503.0,0.002]
[1725229953831,0.521739,57500.0,57499.0,0.002]
[1725229954045,0.521683,57506.0,57505.0,0.002]
[1725229954317,0.01897829,57510.0,57505.0,0.002]
[1725229954318,0.01897829,57510.0,57509.0,0.002]
[1725229954562,0.522466,57510.0,57509.0,0.002]
[1725229955039,0.522466,57510.0,57507.0,0.002]
[1725229955040,0.17389,57508.0,57507.0,0.002]
[1725229955297,0.17389,57508.0,57506.0,0.0991]
[1725229955298,0.01815929,57517.0,57516.0,0.002]
[1725229955546,0.005,57549.0,57516.0,0.222]
[1725229955547,0.50540786,57538.0,57516.0,0.222]
[1725229955809,0.01815929,57527.0,57521.0,0.002]
[1725229956032,0.51040786,57554.0,57530.0,0.002]
[1725229956033,0.50540786,57554.0,57530.0,0.002]
[1725229956258,0.50540786,57554.0,57530.0,0.298722]
[1725229956259,0.01815929,57538.0,57530.0,0.298722]
[1725229956538,0.50540786,57554.0,57553.0,0.002]
[1725229956763,0.50540786,57554.0,57542.0,0.1229]
[1725229956764,0.521284,57550.0,57549.0,0.002]
[1725229957040,0.521284,57550.0,57546.0,0.0991]
[1725229957041,0.347523,57550.0,57546.0,0.0991]
[1725229957304,0.521313,57547.0,57546.0,0.0991]
[1725229957529,0.521439,57533.0,57532.0,0.121]
[1725229957775,0.173804,57536.0,57533.0,0.0967]
[1725229958014,0.347529,57549.0,57525.0,0.2177]
[1725229958015,0.173834,57526.0,57525.0,0.2177]
[1725229958241,0.173834,57526.0,57525.0,0.121]
[1725229958242,1.216838,57526.0,57525.0,0.121]
[1725229958492,1.216838,57526.0,57518.0,0.0967]
[1725229958493,0.869277,57519.0,57518.0,0.0967]
[1725229959453,0.869277,57519.0,57514.0,0.121]
[1725229959454,0.521602,57515.0,57514.0,0.121]
[1725229959674,0.869337,57515.0,57514.0,0.121]
[1725229959916,0.869337,57515.0,57490.0,0.58631602]
[1725229959917,0.521665,57508.0,57507.0,0.13]
[1725229960370,0.01,57533.0,57507.0,0.13]
[1725229960371,0.50540786,57531.0,57507.0,0.132]
[1725229960586,0.50540786,57531.0,57507.0,0.13]
[1725229960587,0.347718,57518.0,57507.0,0.13]
[1725229960804,0.27482475,57530.0,57507.0,0.132]
[1725229960805,0.1,57530.0,57507.0,0.132]
[1725229961024,0.347709,57520.0,57507.0,0.13]
[1725229961243,0.1,57530.0,57523.0,0.002]
[1725229961244,0.52152,57524.0,57523.0,0.002]
[1725229961463,0.521557,57520.0,57519.0,0.002]
[1725229961685,0.34769,57523.0,57519.0,0.002]
[1725229961686,0.173848,57522.0,57519.0,0.002]
[1725229961933,0.347574,57542.0,57519.0,0.002]
[1725229961934,0.347582,57541.0,57528.0,0.002]
[1725229962160,0.521475,57529.0,57528.0,0.002]
[1725229962413,0.374935,57549.0,57528.0,0.002]
[1725229962414,0.173816,57532.0,57528.0,0.002]
[1725229962680,0.347493,57556.0,57529.0,0.2299]
[1725229962912,0.425337,57568.0,57529.0,0.2299]
[1725229962913,0.173758,57551.0,57550.0,0.002]
[1725229963133,0.0130262,57553.0,57549.0,0.002]
[1725229963134,0.868807,57550.0,57549.0,0.002]
[1725229963815,0.868837,57548.0,57547.0,0.1236]
[1725229964282,1.216372,57548.0,57547.0,0.1236]
[1725229964745,1.216372,57548.0,57539.0,0.1318]
[1725229964746,0.86896,57540.0,57539.0,0.1318]
[1725229965006,0.17381,57534.0,57533.0,0.1318]
[1725229965225,0.52143,57534.0,57533.0,0.1318]
[1725229965463,0.86905,57534.0,57533.0,0.14910929]
[1725229965685,0.86905,57534.0,57533.0,0.1318]
[1725229965686,0.52143,57534.0,57533.0,0.1318]
[1725229965955,0.521351,57543.0,57542.0,0.002]
[1725229966175,0.082921,57568.0,57545.0,0.002]
[1725229966176,0.347513,57552.0,57545.0,0.002]
[1725229966421,0.173767,57549.0,57546.0,0.2442]
[1725229966653,0.347518,57551.0,57546.0,0.2442]
[1725229966869,0.173761,57550.0,57549.0,0.002]
[1725229967150,0.521284,57550.0,57549.0,0.002]
[1725229967373,0.347504,57554.0,57549.0,0.002]
[1725229967618,0.01815929,57555.0,57549.0,0.002]
[1725229967619,0.521284,57550.0,57549.0,0.002]
[1725229967839,0.868807,57550.0,57549.0,0.002]
[1725229968086,0.521313,57547.0,57546.0,0.2442]
[1725229968340,0.01815929,57555.0,57554.0,0.002]
[1725229968341,0.36565229,57555.0,57554.0,0.002]
[1725229968566,0.868747,57554.0,57553.0,0.002]
[1725229968814,0.868747,57554.0,57546.0,0.2442]
[1725229968815,0.521257,57553.0,57552.0,0.002]
[1725229969038,0.521266,57552.0,57551.0,0.002]
[1725229969273,0.521266,57552.0,57549.0,0.002]
[1725229969274,0.868807,57550.0,57549.0,0.002]
[1725229969512,0.521284,57550.0,57549.0,0.002]
[1725229970721,0.868807,57550.0,57549.0,0.002]
[1725229970944,0.521313,57547.0,57546.0,0.2442]
[1725229972050,0.54858255,57547.0,57546.0,0.2442]
[1725229972514,0.54858255,57547.0,57533.0,0.1089]
[1725229972515,0.347553,57546.0,57533.0,0.1089]
[1725229972519,0.02726955,57547.0,57533.0,0.1089]
[1725229972769,0.02726955,57547.0,57533.0,0.2398]
[1725229972770,0.12726955,57547.0,57533.0,0.2398]
[1725229973007,0.347566,57543.0,57533.0,0.2398]
[1725229973259,0.17379,57541.0,57540.0,0.002]
[1725229973723,0.54863973,57541.0,57540.0,0.002]
[1725229973935,0.20106173,57541.0,57540.0,0.002]
[1725229974394,0.54863973,57541.0,57540.0,0.002]
[1725229974861,0.54863973,57541.0,57539.0,0.002]
[1725229974862,0.86896,57540.0,57539.0,0.002]
[1725229975126,0.86905,57534.0,57533.0,0.2398]
[1725229975364,0.86905,57534.0,57490.0,0.347885]
[1725229975365,0.521511,57525.0,57524.0,0.1286]
[1725229975595,0.869185,57525.0,57524.0,0.1286]
[1725229976065,0.869185,57525.0,57507.0,0.347778]
[1725229976066,0.521575,57518.0,57517.0,0.002]
[1725229976277,0.918297,57525.0,57515.0,0.1395]
[1725229976278,0.869322,57516.0,57515.0,0.1395]
[1725229976516,1.217051,57516.0,57515.0,0.1395]
[1725229976744,1.217051,57516.0,57499.0,0.50540786]
[1725229976745,0.347729,57516.0,57508.0,0.1395]
[1725229976981,0.173884,57510.0,57508.0,0.1395]
[1725229977265,0.347677,57525.0,57519.0,0.002]
[1725229977563,0.50540786,57537.0,57521.0,0.1073]
[1725229977786,0.07515929,57550.0,57522.0,0.1395]
[1725229977787,0.173843,57523.0,57522.0,0.1395]
[1725229978043,0.52153,57523.0,57522.0,0.1568681]
[1725229978280,0.869217,57523.0,57522.0,0.1568681]
[1725229978544,0.869217,57523.0,57515.0,0.1415]
[1725229978545,0.869322,57516.0,57515.0,0.1415]
[1725229978995,0.521593,57516.0,57515.0,0.1415]
[1725229979439,0.347693,57522.0,57521.0,0.002]
[1725229979660,0.521539,57522.0,57521.0,0.002]
[1725229979914,0.5488192,57522.0,57521.0,0.002]
[1725229980146,0.521593,57516.0,57515.0,0.002]
[1725229980372,0.521593,57516.0,57487.0,0.01]
[1725229980373,0.521593,57516.0,57504.0,0.002]
[1725229980374,0.259458,57516.0,57504.0,0.002]
[1725229980601,0.259458,57516.0,57480.0,0.347945]
[1725229980602,0.521766,57497.0,57496.0,0.1395]
[1725229980865,0.521802,57493.0,57492.0,0.2491]
[1725229981134,0.347754,57512.0,57492.0,0.2471]
[1725229981385,0.062,57521.0,57492.0,0.2471]
[1725229981386,0.521802,57493.0,57492.0,0.2471]
[1725229981649,0.521802,57493.0,57492.0,0.2491]
[1725229981908,0.17394,57491.0,57490.0,0.002]
[1725229982157,0.521847,57488.0,57487.0,0.1395]
[1725229982445,1.217643,57488.0,57487.0,0.1395]
[1725229982643,0.0272914,57493.0,57486.0,0.002]
[1725229982644,1.217664,57487.0,57486.0,0.002]
[1725229982892,1.217664,57487.0,57480.0,0.1076]
[1725229982893,0.173961,57485.0,57480.0,0.1076]
[1725229983121,0.1,57496.0,57490.0,0.002]
[1725229983122,0.347881,57491.0,57490.0,0.002]
[1725229983355,0.173957,57486.0,57485.0,0.002]
[1725229983595,0.521867,57486.0,57485.0,0.002]
[1725229984031,0.54911686,57491.0,57490.0,0.002]
[1725229984257,0.173947,57489.0,57480.0,0.455544]
[1725229984489,0.02729586,57491.0,57490.0,0.002]
[1725229984718,0.01,57521.0,57490.0,0.002]
[1725229984719,0.0595,57517.0,57494.0,0.1076]
[1725229984991,0.869502,57504.0,57503.0,0.002]
[1725229985214,0.347844,57497.0,57496.0,0.002]
[1725229985466,0.347844,57497.0,57494.0,0.1076]
[1725229985467,0.521784,57495.0,57494.0,0.1076]
[1725229985719,0.521784,57495.0,57470.0,0.3534]
[1725229985720,0.521856,57487.0,57486.0,0.002]
[1725229985967,0.0595,57497.0,57474.0,0.50540786]
[1725229985968,0.347965,57477.0,57474.0,0.50540786]
[1725229986191,0.978612,57477.0,57475.0,0.002]
[1725229986430,0.978612,57477.0,57472.0,0.0009009]
[1725229986431,1.326877,57477.0,57476.0,0.01851519]
[1725229986676,1.834342,57477.0,57476.0,0.01851519]
[1725229986897,1.891342,57477.0,57476.0,0.0009009]
[1725229987326,2.239307,57477.0,57476.0,0.0009009]
[1725229987778,1.891342,57477.0,57476.0,0.0009009]
[1725229988067,2.28546629,57477.0,57476.0,9e-07]
[1725229988311,1.57095,57473.0,57472.0,9e-07]
[1725229988549,1.941939,57473.0,57472.0,9e-07]
[1725229988764,1.66595,57473.0,57472.0,9e-07]
[1725229988988,1.69325901,57473.0,57472.0,9e-07]
[1725229989957,1.317961,57473.0,57472.0,9e-07]
[1725229990219,1.217961,57473.0,57472.0,9e-07]
[1725229990466,0.869972,57473.0,57472.0,9e-07]
[1725229991174,0.19214129,57477.0,57476.0,0.002]
[1725229991435,0.173971,57481.0,57480.0,0.1414]
[1725229991680,0.521912,57481.0,57480.0,0.1394]
[1725229991921,0.521912,57481.0,57480.0,0.15899287]
[1725229992154,0.521912,57481.0,57480.0,0.1394]
[1725229992641,0.521912,57481.0,57480.0,0.15699287]
[1725229992887,0.869853,57481.0,57480.0,0.15699287]
[1725229993127,1.363394,57481.0,57480.0,0.01759287]
[1725229993359,1.363394,57481.0,57472.0,9e-07]
[1725229993360,0.869972,57473.0,57472.0,9e-07]
[1725229993611,0.969972,57473.0,57472.0,9e-07]
[1725229993857,0.34796,57478.0,57472.0,9e-07]
[1725229994094,0.01815929,57485.0,57480.0,0.0009009]
[1725229994095,0.521911,57481.0,57480.0,0.0009009]
[1725229994307,0.969852,57481.0,57480.0,0.0009009]
[1725229994790,0.99715361,57481.0,57480.0,0.0009009]
[1725229995029,1.34509461,57481.0,57480.0,0.0009009]
[1725229995332,1.34509461,57481.0,57480.0,0.1323009]
[1725229995333,0.75911788,57481.0,57480.0,0.1323009]
[1725229995523,0.75911788,57481.0,57480.0,0.25333099]
[1725229995524,0.02730161,57481.0,57480.0,0.25333099]
[1725229995814,0.02730161,57481.0,57480.0,0.25533099]
[1725229996064,0.005,57514.0,57480.0,0.25533099]
[1725229996065,0.50540786,57498.0,57496.0,0.002]
[1725229996311,1.02716486,57498.0,57497.0,0.002]
[1725229996522,0.521766,57497.0,57496.0,0.1334]
[1725229996771,0.86961,57497.0,57496.0,0.1334]
[1725229997019,0.97362,57497.0,57496.0,0.1489072]
[1725229997265,0.521766,57497.0,57496.0,0.1334]
[1725229997505,0.521766,57497.0,57496.0,0.2393]
[1725229997718,0.86961,57497.0,57496.0,0.2548072]
[1725229997993,1.217454,57497.0,57496.0,0.0175072]
[1725229998218,1.319563,57497.0,57496.0,0.0175072]
[1725229998465,0.01815929,57498.0,57489.0,0.2474]
[1725229998466,0.521829,57490.0,57489.0,0.2474]
[1725229998955,0.347858,57495.0,57489.0,0.2474]
[1725229998956,0.347858,57495.0,57489.0,0.26494468]
[1725229999185,0.347769,57510.0,57489.0,0.26494468]
[1725229999186,0.1739,57505.0,57497.0,0.2454]
[1725229999406,0.347783,57508.0,57498.0,0.1395]
[1725229999625,0.347781,57508.0,57498.0,0.1395]
[1725229999843,0.01815929,57511.0,57498.0,0.33174783]
[1725230000082,0.01815929,57511.0,57500.0,0.17391]
[1725230000083,0.347777,57508.0,57500.0,0.17391]
[1725230000306,0.01815929,57511.0,57500.0,0.17391]
[1725230000307,0.01815929,57511.0,57510.0,0.2339]
[1725230000523,0.50540786,57537.0,57517.0,0.002]
[1725230000745,0.01815929,57530.0,57525.0,0.173835]
[1725230001002,0.173831,57527.0,57526.0,0.1272]
[1725230001257,0.000819,57540.0,57526.0,0.1272]
[1725230001258,0.695996,57540.0,57530.0,0.002]
[1725230001478,0.695996,57540.0,57530.0,0.175822]
[1725230001479,0.000819,57540.0,57530.0,0.175822]
[1725230001728,0.173796,57539.0,57530.0,0.77352466]
[1725230001976,0.348407,57540.0,57530.0,0.25205866]
[1725230002215,0.173808,57535.0,57530.0,0.25205866]
[1725230002449,0.000819,57540.0,57539.0,0.1337]
[1725230002945,0.000819,57540.0,57539.0,0.15181055]
[1725230003158,0.02808972,57540.0,57539.0,0.26291055]
[1725230003375,0.02808972,57540.0,57539.0,0.26491055]
[1725230003886,0.02808972,57540.0,57539.0,0.44218108]
[1725230004107,0.347476,57558.0,57539.0,0.44218108]
[1725230004108,0.347484,57557.0,57549.0,0.1357]
[1725230004381,0.347365,57577.0,57549.0,0.1357]
[1725230004382,0.347464,57560.0,57559.0,0.002]
[1725230004593,0.868659,57560.0,57559.0,0.002]
[1725230004867,0.521212,57558.0,57557.0,0.002]
[1725230005091,0.868687,57558.0,57557.0,0.002]
[1725230005355,0.01361946,57564.0,57557.0,0.2441]
[1725230005571,0.00819,57568.0,57567.0,0.41781]
[1725230005793,0.00819,57568.0,57567.0,0.2441]
[1725230006011,0.00819,57568.0,57567.0,1.12465966]
[1725230006229,0.00819,57568.0,57567.0,0.25610766]
[1725230006443,0.00819,57568.0,57567.0,0.31646123]
[1725230006673,0.00819,57568.0,57567.0,0.8410655]
[1725230006891,0.00819,57568.0,57567.0,1.18501323]
[1725230007143,0.00819,57568.0,57567.0,0.83759223]
[1725230007391,0.00819,57568.0,57567.0,1.18501323]
[1725230007629,0.00819,57568.0,57567.0,0.25610766]
[1725230008102,0.181897,57568.0,57567.0,0.25910957]
[1725230008534,0.00819,57568.0,57567.0,0.25910957]
[1725230009215,0.00819,57598.0,57579.0,0.002]
[1725230009423,0.174457,57591.0,57587.0,0.1408]
[1725230009636,0.181837,57588.0,57587.0,0.1408]
[1725230009899,0.529131,57588.0,57587.0,0.15274361]
[1725230010112,0.00819,57588.0,57587.0,0.15274361]
[1725230010356,0.00819,57588.0,57587.0,0.43142436]
[1725230010649,0.00819,57588.0,57587.0,0.26971797]
[1725230012212,0.00819,57588.0,57587.0,0.44336797]
[1725230012459,0.00819,57588.0,57587.0,0.77539361]
[1725230013172,0.00819,57598.0,57597.0,0.76296]
[1725230013422,0.00819,57598.0,57597.0,0.48053502]
[1725230013632,0.00819,57598.0,57597.0,0.49244663]
[1725230013854,0.529041,57598.0,57597.0,0.25401161]
[1725230014082,0.181807,57598.0,57597.0,0.25401161]
[1725230014297,0.00819,57598.0,57597.0,0.25401161]
[1725230014594,0.876275,57598.0,57597.0,0.25401161]
[1725230014820,0.876275,57598.0,57597.0,0.01191161]
[1725230014821,1.500462,57598.0,57597.0,0.01191161]
[1725230015074,1.215403,57594.0,57593.0,0.002]
[1725230015316,0.868145,57594.0,57593.0,0.002]
[1725230016008,0.89952276,57594.0,57593.0,0.002]
[1725230016722,0.89952276,57594.0,57584.0,0.1345]
[1725230016978,0.00819,57598.0,57589.0,0.002]
[1725230016979,0.173642,57590.0,57589.0,0.002]
[1725230017159,0.00819,57598.0,57597.0,0.002]
[1725230017405,0.173641,57590.0,57589.0,0.002]
[1725230017676,0.520923,57590.0,57589.0,0.002]
[1725230017912,0.1291,57596.0,57585.0,0.002]
[1725230017913,0.173653,57586.0,57585.0,0.002]
[1725230018137,0.520959,57586.0,57585.0,0.002]
[1725230018417,0.86732348,57586.0,57585.0,0.002]
[1725230018647,1.21462948,57586.0,57585.0,0.002]
[1725230019082,0.868295,57584.0,57583.0,0.002]
[1725230019299,1.215613,57584.0,57583.0,0.002]
[1725230019519,1.215613,57584.0,57580.0,0.002]
[1725230019520,0.86834,57581.0,57580.0,0.002]
[1725230019737,0.86834,57581.0,57558.0,0.37238]
[1725230019738,0.521022,57579.0,57578.0,0.002]
[1725230019967,0.521022,57579.0,57573.0,0.002]
[1725230019968,0.521068,57574.0,57573.0,0.002]
[1725230020190,0.521068,57574.0,57558.0,0.02491]
[1725230020191,0.521122,57568.0,57567.0,0.002]
[1725230020634,0.347364,57577.0,57576.0,0.002]
[1725230020861,0.347293,57589.0,57576.0,0.002]
[1725230021101,0.347293,57589.0,57570.0,0.347402]
[1725230021102,0.52095,57587.0,57586.0,0.002]
[1725230021344,0.520977,57584.0,57583.0,0.002]
[1725230021577,0.868295,57584.0,57583.0,0.002]
[1725230021817,0.868295,57584.0,57583.0,0.02001945]
[1725230022067,1.215613,57584.0,57583.0,0.002]
[1725230022291,0.2442,57597.0,57577.0,0.2412]
[1725230022292,0.1364,57619.0,57595.0,0.173625]
[1725230022540,0.1364,57619.0,57588.0,0.1356]
[1725230022541,0.50540786,57618.0,57598.0,3.61801]
[1725230022819,0.0004,57619.0,57597.0,0.1356]
[1725230022820,0.347171,57609.0,57597.0,0.1356]
[1725230023068,0.174014,57599.0,57598.0,0.01981029]
[1725230023292,1.215698,57599.0,57598.0,0.01981029]
[1725230023567,0.520914,57591.0,57590.0,0.002]
[1725230024000,0.347628,57599.0,57597.0,0.002]
[1725230024001,0.520855,57598.0,57597.0,0.002]
[1725230024229,0.520855,57598.0,57586.0,0.1356]
[1725230024230,0.173641,57590.0,57587.0,0.002]
[1725230024465,0.174014,57599.0,57598.0,0.002]
[1725230024723,0.0004,57599.0,57598.0,0.318017]
[1725230024978,0.174014,57599.0,57598.0,0.1444]
[1725230025192,0.174014,57599.0,57584.0,0.347314]
[1725230025193,0.0004,57599.0,57590.0,0.1424]
[1725230025412,0.173618,57598.0,57590.0,0.1424]
[1725230025628,0.173621,57597.0,57590.0,0.1424]
[1725230025842,0.347235,57598.0,57594.0,0.002]
[1725230026103,0.347235,57598.0,57590.0,0.1424]
[1725230026104,0.173638,57591.0,57590.0,0.1424]
[1725230026343,0.173638,57591.0,57590.0,0.002]
[1725230026597,0.520914,57591.0,57590.0,0.002]
[1725230026816,0.173638,57591.0,57590.0,0.002]
[1725230027037,0.173638,57591.0,57583.0,0.1115]
[1725230027038,0.173632,57593.0,57592.0,0.002]
[1725230027251,0.173628,57595.0,57594.0,0.002]
[1725230027954,0.347235,57598.0,57597.0,0.002]
[1725230028176,0.0004,57599.0,57584.0,0.002]
[1725230028388,0.0004,57599.0,57590.0,0.002]
[1725230028389,0.520914,57591.0,57590.0,0.002]
[1725230028622,0.86819,57591.0,57590.0,0.002]
[1725230028856,0.173638,57591.0,57590.0,0.002]
[1725230029287,0.173632,57593.0,57592.0,0.002]
[1725230029507,0.0004,57599.0,57592.0,0.002]
[1725230029508,0.347235,57598.0,57592.0,0.002]
[1725230029719,0.02724516,57593.0,57592.0,0.002]
[1725230029981,0.20087716,57593.0,57592.0,0.002]
[1725230030196,0.20087716,57593.0,57592.0,0.0218423]
[1725230030400,0.20087716,57593.0,57592.0,0.002]
[1725230030622,0.02724516,57593.0,57592.0,0.002]
[1725230031727,0.02724516,57593.0,57592.0,0.0218423]
[1725230031944,0.02724516,57593.0,57592.0,0.002]
[1725230032174,0.02724516,57593.0,57592.0,0.0218423]
[1725230032416,0.02724516,57593.0,57592.0,0.002]
[1725230032661,0.02724516,57593.0,57592.0,0.1619423]
[1725230032900,0.02724516,57593.0,57571.0,0.51540786]
[1725230032901,0.520914,57591.0,57590.0,0.002]
[1725230033140,0.173638,57591.0,57590.0,0.002]
[1725230033371,0.520914,57591.0,57590.0,0.002]
[1725230033614,0.520914,57591.0,57587.0,0.0008976]
[1725230033615,0.173647,57588.0,57587.0,0.0028976]
[1725230033868,0.868235,57588.0,57587.0,0.0028976]
[1725230034081,0.520941,57588.0,57587.0,0.0028976]
[1725230034305,0.173647,57588.0,57587.0,0.0028976]
[1725230034781,0.520941,57588.0,57587.0,0.0028976]
[1725230035022,0.520941,57588.0,57587.0,0.0008976]
[1725230035023,1.03182951,57588.0,57587.0,0.0008976]
[1725230035235,1.49498275,57588.0,57587.0,0.0008976]
[1725230035447,1.32855351,57588.0,57587.0,0.0008976]
[1725230035673,1.34441282,57588.0,57587.0,0.0008976]
[1725230035885,1.64406951,57588.0,57587.0,0.0008976]
[1725230036144,1.44505351,57588.0,57587.0,0.0008976]
[1725230036874,1.315529,57588.0,57587.0,0.0008976]
[1725230037082,1.57239919,57588.0,57587.0,0.0008976]
[1725230037517,1.43914219,57588.0,57587.0,0.0008976]
[1725230038419,1.32855219,57588.0,57587.0,0.0028976]
[1725230038659,1.45854219,57588.0,57587.0,0.0028976]
[1725230038934,1.48579347,57588.0,57587.0,0.0028976]
[1725230039130,1.83308747,57588.0,57587.0,0.0008976]
[1725230039598,1.96948747,57588.0,57587.0,0.0008976]
[1725230040344,1.95646428,57588.0,57587.0,0.0008976]
[1725230040585,1.9694874,57588.0,57587.0,0.0008976]
[1725230040878,1.95646428,57588.0,57587.0,0.0008976]
[1725230041123,1.95646428,57588.0,57587.0,0.6647476]
[1725230041124,0.06224472,57588.0,57587.0,0.6647476]
[1725230041372,0.000816,57593.0,57592.0,0.002]
[1725230042096,0.174448,57593.0,57592.0,0.02308735]
[1725230042334,0.19031274,57593.0,57592.0,0.002]
[1725230042586,0.000816,57593.0,57592.0,0.002]
[1725230042836,0.000816,57593.0,57592.0,0.48129842]
[1725230043060,0.521712,57593.0,57592.0,0.2513]
[1725230043298,0.19031264,57593.0,57592.0,0.27238735]
[1725230043538,0.19031264,57593.0,57592.0,0.44602235]
[1725230043539,0.01668064,57593.0,57592.0,0.44602235]
[1725230043785,0.174448,57593.0,57592.0,0.27238735]
[1725230044110,0.0166801,57593.0,57592.0,0.27238735]
[1725230044568,0.55060388,57593.0,57592.0,0.16598735]
[1725230044801,0.02970788,57593.0,57592.0,0.16598735]
[1725230045030,0.0166801,57593.0,57592.0,0.68240374]
[1725230045268,0.000816,57593.0,57592.0,1.05076109]
[1725230045488,0.000816,57593.0,57592.0,1.15936109]
[1725230045738,0.000816,57593.0,57592.0,1.39779611]
[1725230045990,0.174448,57593.0,57592.0,0.27458735]
[1725230046241,0.174448,57593.0,57592.0,0.02108735]
[1725230046242,1.01056147,57593.0,57592.0,0.02108735]
[1725230046486,1.37980403,57593.0,57592.0,0.02108735]
[1725230046707,1.37980403,57593.0,57590.0,0.0008976]
[1725230046708,0.86819,57591.0,57590.0,0.0008976]
[1725230046930,1.48763503,57591.0,57590.0,0.0008976]
[1725230048087,2.34468703,57591.0,57590.0,0.0008976]
[1725230048318,1.465629,57588.0,57587.0,0.0008976]
[1725230048544,2.22378103,57588.0,57587.0,0.0008976]
[1725230048771,3.54004647,57588.0,57587.0,0.0008976]
[1725230049035,3.56200629,57588.0,57587.0,0.0008976]
[1725230049331,3.90929451,57588.0,57587.0,0.0008976]
[1725230049584,0.868657,57560.0,57559.0,0.07040629]
[1725230049820,0.521212,57558.0,57557.0,0.1371]
[1725230050051,0.134,57570.0,57565.0,0.002]
[1725230050052,0.173714,57566.0,57565.0,0.002]
[1725230050276,0.1,57571.0,57566.0,0.002]
[1725230050504,0.1,57571.0,57558.0,0.347474]
[1725230050505,0.173704,57569.0,57568.0,0.002]
[1725230050733,0.173704,57569.0,57558.0,0.347474]
[1725230050734,0.1,57573.0,57572.0,0.002]
[1725230050985,0.173701,57570.0,57569.0,0.002]
[1725230051214,0.868597,57564.0,57563.0,0.002]